fUST/lending_fUST_20240916
["ID","MTS","AMOUNT","RATE_DAILY","PERIOD"]
[338312837,1726489845436,-1804.09,0.00019178,2]
[338312838,1726489845446,-500.0,0.00019178,2]
[338312839,1726489845455,-583.57,0.00019178,2]
[338312840,1726489845464,-347.14766454,0.00019178,2]
[338312841,1726489845474,-631.48,0.00019178,2]
[338312842,1726489845483,-500.0,0.00019178,2]
[338312843,1726489845495,-500.56685369,0.00019178,2]
[338312844,1726489845504,-536.27,0.00019178,2]
[338312845,1726489845514,-554.22825775,0.00019178,2]
[338312846,1726489845524,-504.06317875,0.00019178,2]
[338312847,1726489845534,-500.0,0.00019178,2]
[338312848,1726489845544,-504.61503044,0.00019178,2]
[338312849,1726489845553,-500.0,0.00019178,2]
[338312850,1726489845562,-2001.16,0.00019178,2]
[338312851,1726489845572,-500.0,0.00019178,2]
[338312852,1726489845582,-500.0,0.00019178,2]
[338312853,1726489845592,-1155.1,0.00019178,2]
[338312854,1726489845602,-500.0,0.00019178,2]
[338312855,1726489845611,-508.16412891,0.00019178,2]
[338312856,1726489845620,-500.0,0.00019178,2]
[338312857,1726489845630,-500.0,0.00019178,2]
[338312858,1726489845640,-500.0,0.00019178,2]
[338312859,1726489845649,-823.36,0.00019178,2]
[338312860,1726489845659,-500.0,0.00019178,2]
[338312861,1726489845669,-500.0,0.00019178,2]
[338312862,1726489845679,-502.86276577,0.00019178,2]
[338312863,1726489845689,-1481.73,0.00019178,2]
[338312864,1726489845699,-500.0,0.00019178,2]
[338312865,1726489845708,-500.0,0.00019178,2]
[338312866,1726489845717,-500.0,0.00019178,2]
[338312867,1726489845727,-500.0,0.00019178,2]
[338312868,1726489845737,-500.0,0.00019178,2]
[338312869,1726489845746,-795.43,0.00019178,2]
[338312870,1726489845756,-500.0,0.00019178,2]
[338312871,1726489845766,-500.0,0.00019178,2]
[338312872,1726489845776,-500.0,0.00019178,2]
[338312873,1726489845786,-762.96,0.00019178,2]
[338312874,1726489845797,-500.0,0.00019178,2]
[338312875,1726489845806,-852.93,0.00019178,2]
[338312876,1726489845816,-609.98,0.00019178,2]
[338312877,1726489845826,-500.0,0.00019178,2]
[338312878,1726489845835,-710.7,0.00019178,2]
[338312879,1726489845845,-500.0,0.00019178,2]
[338312880,1726489845854,-500.0,0.00019178,2]
[338312881,1726489845863,-667.97,0.00019178,2]
[338312882,1726489845872,-500.0,0.00019178,2]
[338312883,1726489845882,-500.0,0.00019178,2]
[338312884,1726489845892,-500.0,0.00019178,2]
[338312885,1726489845902,-557.13,0.00019178,2]
[338312886,1726489845911,-866.31,0.00019178,2]
[338312887,1726489845921,-500.0,0.00019178,2]
[338312888,1726489845930,-575.97,0.00019178,2]
[338312889,1726489845940,-500.0,0.00019178,2]
[338312890,1726489845949,-500.0,0.00019178,2]
[338312891,1726489845959,-500.0,0.00019178,2]
[338312892,1726489845969,-910.81,0.00019178,2]
[338312893,1726489845979,-1777.72,0.00019178,2]
[338312894,1726489845988,-2045.74,0.00019178,2]
[338312895,1726489845998,-1253.99,0.00019178,2]
[338312896,1726489846008,-248.04850227,0.00019178,2]
[338312897,1726489846018,-631.59,0.00019178,2]
[338312898,1726489846027,-500.0,0.00019178,2]
[338312899,1726489846037,-500.0,0.00019178,2]
[338312900,1726489846047,-500.0,0.00019178,2]
[338312901,1726489846057,-647.63949555,0.00019178,2]
[338312902,1726489846067,-767.86,0.00019178,2]
[338312903,1726489846077,-500.0,0.00019178,2]
[338312904,1726489846087,-277.80878001,0.00019178,2]
[338312905,1726489846096,-1046.45,0.00019178,2]
[338312906,1726489846106,-762.58,0.00019178,2]
[338312907,1726489846116,-500.0,0.00019178,2]
[338312908,1726489846126,-500.0,0.00019178,2]
[338312909,1726489846135,-500.0,0.00019178,2]
[338312910,1726489846146,-1673.59,0.00019178,2]
[338312911,1726489846156,-500.0,0.00019178,2]
[338312912,1726489846166,-501.72781202,0.00019178,2]
[338312913,1726489846176,-500.0,0.00019178,2]
[338312914,1726489846186,-1012.92,0.00019178,2]
[338312915,1726489846196,-500.0,0.00019178,2]
[338312916,1726489846206,-641.66,0.00019178,2]
[338312917,1726489846215,-500.0,0.00019178,2]
[338312918,1726489846225,-1752.38,0.00019178,2]
[338312919,1726489846235,-696.91,0.00019178,2]
[338312920,1726489846245,-500.0,0.00019178,2]
[338312921,1726489846254,-500.0,0.00019178,2]
[338312922,1726489846265,-500.0,0.00019178,2]
[338312923,1726489846275,-952.53,0.00019178,2]
[338312924,1726489846284,-500.0,0.00019178,2]
[338312925,1726489846294,-500.0,0.00019178,2]
[338312926,1726489846303,-324.03821453,0.00019178,2]
[338312927,1726489846313,-614.54,0.00019178,2]
[338312928,1726489846322,-882.98,0.00019178,2]
[338312929,1726489846331,-500.0,0.00019178,2]
[338312930,1726489846341,-500.0,0.00019178,2]
[338312931,1726489846350,-1640.74,0.00019178,2]
[338312932,1726489846360,-502.52410159,0.00019178,2]
[338312933,1726489846370,-500.0,0.00019178,2]
[338312934,1726489846380,-4110.27,0.00019178,2]
[338312935,1726489846390,-947.95,0.00019178,2]
[338312936,1726489846400,-936.03,0.00019178,2]
[338312937,1726489846410,-965.81,0.00019178,2]
[338312938,1726489846420,-500.0,0.00019178,2]
[338312939,1726489846430,-542.38,0.00019178,2]
[338312940,1726489846439,-500.0,0.00019178,2]
[338312941,1726489846449,-509.80285937,0.00019178,2]
[338312942,1726489846458,-500.0,0.00019178,2]
[338312943,1726489846468,-750.02,0.00019178,2]
[338312944,1726489846478,-500.0,0.00019178,2]
[338312945,1726489846488,-587.16,0.00019178,2]
[338312946,1726489846498,-500.0,0.00019178,2]
[338312947,1726489846508,-2485.18,0.00019178,2]
[338312948,1726489846518,-500.0,0.00019178,2]
[338312949,1726489846528,-500.0,0.00019178,2]
[338312950,1726489846538,-500.0,0.00019178,2]
[338312951,1726489846548,-500.0,0.00019178,2]
[338312952,1726489846557,-500.0,0.00019178,2]
[338312953,1726489846567,-500.0,0.00019178,2]
[338312954,1726489846577,-1633.8,0.00019178,2]
[338312955,1726489846590,-500.0,0.00019178,2]
[338312956,1726489846599,-663.91,0.00019178,2]
[338312957,1726489846609,-500.0,0.00019178,2]
[338312958,1726489846619,-500.0,0.00019178,2]
[338312959,1726489846630,-500.0,0.00019178,2]
[338312960,1726489846639,-500.0,0.00019178,2]
[338312961,1726489846649,-500.0,0.00019178,2]
[338312962,1726489846660,-500.0,0.00019178,2]
[338312963,1726489846671,-1544.68,0.00019178,2]
[338312964,1726489846870,-1621.62,0.00019178,2]
[338312965,1726489846880,-500.0,0.00019178,2]
[338312966,1726489846891,-863.28,0.00019178,2]
[338312967,1726489846901,-500.0,0.00019178,2]
[338312968,1726489846911,-500.0,0.00019178,2]
[338312969,1726489846921,-500.0,0.00019178,2]
[338312970,1726489846930,-500.0,0.00019178,2]
[338312971,1726489846940,-500.0,0.00019178,2]
[338312972,1726489846950,-500.0,0.00019178,2]
[338312973,1726489846960,-500.0,0.00019178,2]
[338312974,1726489846970,-508.33,0.00019178,2]
[338312975,1726489846979,-500.0,0.00019178,2]
[338312976,1726489846989,-250.0,0.00019178,2]
[338312977,1726489846999,-500.0,0.00019178,2]
[338312978,1726489847008,-500.0,0.00019178,2]
[338312979,1726489847018,-500.0,0.00019178,2]
[338312980,1726489847028,-500.0,0.00019178,2]
[338312981,1726489847037,-500.0,0.00019178,2]
[338312982,1726489847046,-500.0,0.00019178,2]
[338312983,1726489847056,-615.2,0.00019178,2]
[338312984,1726489847066,-500.0,0.00019178,2]
[338312985,1726489847077,-3371.18,0.00019178,2]
[338312986,1726489847086,-1290.92,0.00019178,2]
[338312987,1726489847096,-500.0,0.00019178,2]
[338312988,1726489847106,-500.0,0.00019178,2]
[338312989,1726489847116,-1548.31,0.00019178,2]
[338312990,1726489847125,-500.0,0.00019178,2]
[338312991,1726489847135,-500.0,0.00019178,2]
[338312992,1726489847144,-756.33,0.00019178,2]
[338312993,1726489847153,-531.03758586,0.00019178,2]
[338312994,1726489847163,-345.17261126,0.00019178,2]
[338312995,1726489847172,-953.02,0.00019178,2]
[338312996,1726489847182,-500.0,0.00019178,2]
[338312997,1726489847192,-655.08,0.00019178,2]
[338312998,1726489847202,-856.34,0.00019178,2]
[338312999,1726489847212,-500.0,0.00019178,2]
[338313000,1726489847222,-500.0,0.00019178,2]
[338313001,1726489847231,-2293.65,0.00019178,2]
[338313002,1726489847241,-1069.98,0.00019178,2]
[338313003,1726489847251,-587.79,0.00019178,2]
[338313004,1726489847261,-500.0,0.00019178,2]
[338313005,1726489847270,-500.0,0.00019178,2]
[338313006,1726489847280,-2710.24,0.00019178,2]
[338313007,1726489847290,-500.0,0.00019178,2]
[338313008,1726489847299,-500.0,0.00019178,2]
[338313009,1726489847309,-500.0,0.00019178,2]
[338313010,1726489847318,-500.0,0.00019178,2]
[338313011,1726489847328,-706.29,0.00019178,2]
[338313012,1726489847338,-501.5,0.00019178,2]
[338313013,1726489847348,-500.0,0.00019178,2]
[338313014,1726489847357,-3657.27,0.00019178,2]
[338313015,1726489847367,-500.0,0.00019178,2]
[338313016,1726489847376,-500.0,0.00019178,2]
[338313017,1726489847385,-1241.83,0.00019178,2]
[338313018,1726489847395,-742.1,0.00019178,2]
[338313019,1726489847405,-500.0,0.00019178,2]
[338313020,1726489847414,-500.0,0.00019178,2]
[338313021,1726489847423,-500.0,0.00019178,2]
[338313022,1726489847433,-1595.85,0.00019178,2]
[338313023,1726489847442,-500.0,0.00019178,2]
[338313024,1726489847452,-513.24629551,0.00019178,2]
[338313025,1726489847462,-500.0,0.00019178,2]
[338313026,1726489847473,-500.0,0.00019178,2]
[338313027,1726489847482,-500.0,0.00019178,2]
[338313028,1726489847492,-1570.68,0.00019178,2]
[338313029,1726489847501,-445.74,0.00019178,2]
[338313030,1726489847511,-2018.48,0.00019178,2]
[338313031,1726489847520,-500.0,0.00019178,2]
[338313032,1726489847530,-1943.79,0.00019178,2]
[338313033,1726489847539,-651.25,0.00019178,2]
[338313034,1726489847548,-500.0,0.00019178,2]
[338313035,1726489847558,-500.0,0.00019178,2]
[338313036,1726489847568,-500.0,0.00019178,2]
[338313037,1726489847578,-4456.67,0.00019178,2]
[338313038,1726489847591,-500.0,0.00019178,2]
[338313039,1726489847600,-500.0,0.00019178,2]
[338313040,1726489847610,-583.84423964,0.00019178,2]
[338313041,1726489848415,-877.77576036,0.00019178,2]
[338313042,1726489848425,-500.0,0.00019178,2]
[338313043,1726489848434,-500.0,0.00019178,2]
[338313044,1726489848444,-500.0,0.00019178,2]
[338313045,1726489848453,-500.0,0.00019178,2]
[338313046,1726489848463,-500.0,0.00019178,2]
[338313047,1726489848472,-1978.81,0.00019178,2]
[338313048,1726489848482,-3536.82,0.00019178,2]
[338313049,1726489848492,-500.0,0.00019178,2]
[338313050,1726489848502,-500.0,0.00019178,2]
[338313051,1726489848512,-500.0,0.00019178,2]
[338313052,1726489848522,-500.0,0.00019178,2]
[338313053,1726489848532,-500.0,0.00019178,2]
[338313054,1726489848542,-1459.99,0.00019178,2]
[338313055,1726489848551,-3545.82,0.00019178,2]
[338313056,1726489848560,-500.0,0.00019178,2]
[338313057,1726489848570,-500.0,0.00019178,2]
[338313058,1726489848579,-500.0,0.00019178,2]
[338313059,1726489848592,-500.0,0.00019178,2]
[338313060,1726489848601,-1387.38,0.00019178,2]
[338313061,1726489848611,-881.02,0.00019178,2]
[338313062,1726489848620,-6570.09,0.00019178,2]
[338313063,1726489848630,-500.0,0.00019178,2]
[338313064,1726489848640,-361.14698278,0.00019178,2]
[338313065,1726489848649,-3823.51,0.00019178,2]
[338313066,1726489848658,-577.06,0.00019178,2]
[338313067,1726489848668,-500.0,0.00019178,2]
[338313068,1726489848677,-3428.76,0.00019178,2]
[338313069,1726489848687,-500.0,0.00019178,2]
[338313070,1726489848697,-500.0,0.00019178,2]
[338313071,1726489848706,-295.80393893,0.00019178,2]
[338313072,1726489848716,-500.0,0.00019178,2]
[338313073,1726489848726,-2543.11,0.00019178,2]
[338313074,1726489848735,-500.0,0.00019178,2]
[338313075,1726489848757,-628.92,0.00019178,2]
[338313076,1726489848766,-567.75199924,0.00019178,2]
[338313077,1726489848776,-500.0,0.00019178,2]
[338313078,1726489848784,-500.0,0.00019178,2]
[338313079,1726489848794,-500.0,0.00019178,2]
[338313080,1726489848803,-545.86960276,0.00019178,2]
[338313081,1726489849192,-983.69039724,0.00019178,2]
[338313082,1726489849202,-209.72960276,0.00019178,2]
[338313089,1726490176010,158.834459,0.00013699,2]
[338313090,1726490208573,161.182828,0.00025999,60]
[338313091,1726490341801,-4853.2017785,0.00017676,2]
[338313092,1726490341824,-300.0,0.00018049,2]
[338313093,1726490341846,-300.0,0.00018049,2]
[338313094,1726490341869,-55523.46565634,0.0001805,2]
[338313095,1726490341892,-937.508,0.00018118,2]
[338313096,1726490341916,-7954.82456516,0.00018151,2]
[338313097,1726490383120,335.07565271,0.00027,120]
[338313098,1726490399577,-300.0,0.00018049,2]
[338313099,1726490399602,-4480.0,0.00018151,2]
[338313100,1726490413314,202.61347908,0.00027,120]
[338313103,1726490566447,1000.0,0.00028,120]
[338313104,1726490644539,1000.0,0.00026,60]
[338313144,1726491032733,-158.56858,0.00017128,2]
[338313147,1726491032743,-845.68142015,0.00017161,2]
[338313239,1726491038781,-772.50167235,0.00017161,2]
[338313241,1726491038791,-158.56858,0.00017187,2]
[338313242,1726491038802,-158.56858,0.00017247,2]
[338313244,1726491038812,-158.56858,0.00017306,2]
[338313245,1726491038822,-158.56858,0.00017366,2]
[338313246,1726491038833,-158.56858,0.00017425,2]
[338313247,1726491038843,-158.56858,0.00017485,2]
[338313248,1726491038853,-158.56858,0.00017544,2]
[338313249,1726491038863,-468.754,0.00017574,2]
[338313250,1726491038873,-158.56858,0.00017604,2]
[338313251,1726491038883,-158.56858,0.00017663,2]
[338313252,1726491038893,-158.56858,0.00017723,2]
[338313253,1726491038902,-158.56858,0.00017782,2]
[338313254,1726491038912,-300.0,0.00017802,2]
[338313255,1726491038922,-300.0,0.00017802,2]
[338313256,1726491038931,-24900.0,0.00017803,2]
[338313257,1726491038941,-158.56858,0.00017842,2]
[338313258,1726491038951,-158.56858,0.00017901,2]
[338313259,1726491038961,-2688.06388417,0.0001795,2]
[338313260,1726491038971,-158.56858,0.00017961,2]
[338313261,1726491038981,-158.56858,0.0001802,2]
[338313262,1726491038991,-3004.30025046,0.0001805,2]
[338313263,1726491039001,-2688.06388417,0.00018424,2]
[338313264,1726491039010,-1000.0,0.00018446,2]
[338313265,1726491039020,-1000.0,0.00018446,2]
[338313266,1726491039030,-1000.0,0.00018446,2]
[338313267,1726491039039,-1000.0,0.00018446,2]
[338313268,1726491039050,-1000.0,0.00018446,2]
[338313269,1726491039060,-1000.0,0.00018446,2]
[338313270,1726491039068,-1000.0,0.00018446,2]
[338313271,1726491039078,-1000.0,0.00018446,2]
[338313272,1726491039088,-1000.0,0.00018446,2]
[338313273,1726491039098,-1000.0,0.00018446,2]
[338313274,1726491039108,-314.26524898,0.00018446,2]
[338313275,1726491039118,-150.0,0.000188,2]
[338313276,1726491039128,-2688.06388417,0.00018898,2]
[338313277,1726491039137,-53592.5397925,0.0001899,3]
[338313278,1726491039147,-45632.6703085,0.0001899,3]
[338313279,1726491039157,-904.16945634,0.00018999,2]
[338313280,1726491039167,-500.0,0.00018999,2]
[338313281,1726491039176,-500.0,0.00018999,2]
[338313282,1726491039186,-500.0,0.00018999,2]
[338313283,1726491039201,-500.0,0.00018999,2]
[338313284,1726491039211,-500.0,0.00018999,2]
[338313285,1726491039220,-500.0,0.00018999,2]
[338313286,1726491039229,-500.0,0.00018999,2]
[338313287,1726491039240,-500.0,0.00018999,2]
[338313288,1726491039253,-500.0,0.00018999,2]
[338313289,1726491039263,-500.0,0.00018999,2]
[338313290,1726491039273,-500.0,0.00018999,2]
[338313291,1726491039283,-500.0,0.00018999,2]
[338313292,1726491039295,-500.0,0.00018999,2]
[338313293,1726491039305,-500.0,0.00018999,2]
[338313294,1726491039315,-204.42309686,0.00018999,2]
[338313295,1726491039327,-500.0,0.00018999,2]
[338313296,1726491039338,-500.0,0.00018999,2]
[338313297,1726491039348,-500.0,0.00018999,2]
[338313298,1726491039358,-500.0,0.00018999,2]
[338313299,1726491039368,-49981.72699412,0.00019,2]
[338313300,1726491039379,-25226.924067,0.00019,2]
[338313301,1726491039388,-150.0,0.00019018,2]
[338313302,1726491039398,-1000.0,0.00019053,2]
[338313303,1726491039409,-2045.96866162,0.00019068,2]
[338313304,1726491039418,-187.0,0.00019078,2]
[338313305,1726491039428,-150.0,0.00019084,2]
[338313306,1726491039438,-500.0,0.00019142,2]
[338313307,1726491039448,-162.33567537,0.00019142,2]
[338313308,1726491039458,-446.88407194,0.00019142,2]
[338313309,1726491039468,-500.0,0.00019142,2]
[338313310,1726491039477,-500.0,0.00019142,2]
[338313311,1726491039487,-500.0,0.00019142,2]
[338313312,1726491039496,-161.41755476,0.00019142,2]
[338313313,1726491039506,-500.0,0.00019142,2]
[338313314,1726491039516,-447.97656276,0.00019142,2]
[338313315,1726491039525,-500.0,0.00019142,2]
[338313316,1726491039536,-500.0,0.00019142,2]
[338313317,1726491039546,-500.0,0.00019142,2]
[338313318,1726491039555,-500.0,0.00019142,2]
[338313319,1726491039565,-500.0,0.00019142,2]
[338313320,1726491039575,-500.0,0.00019142,2]
[338313321,1726491039585,-200.41491518,0.00019142,2]
[338313322,1726491039594,-500.0,0.00019142,2]
[338313323,1726491039603,-500.0,0.00019142,2]
[338313324,1726491039613,-500.0,0.00019142,2]
[338313325,1726491039623,-500.0,0.00019142,2]
[338313326,1726491039633,-500.0,0.00019142,2]
[338313327,1726491039642,-500.0,0.00019142,2]
[338313328,1726491039651,-500.0,0.00019142,2]
[338313329,1726491039661,-500.0,0.00019142,2]
[338313330,1726491039671,-500.0,0.00019142,2]
[338313331,1726491039680,-500.0,0.00019142,2]
[338313332,1726491039689,-500.0,0.00019142,2]
[338313333,1726491039698,-500.0,0.00019142,2]
[338313334,1726491039708,-191.98995547,0.00019142,2]
[338313335,1726491039717,-400.0,0.00019142,2]
[338313336,1726491039727,-500.0,0.00019142,2]
[338313337,1726491039736,-85906.32092611,0.00019143,3]
[338313338,1726491039837,-21278.75865889,0.00019143,3]
[338313339,1726491039846,-91265.3406171,0.00019143,3]
[338313340,1726491039856,-23405.55270402,0.00019148,3]
[338313341,1726491039868,-2941.45969411,0.00019148,3]
[338313379,1726491040750,-150.0,0.00019122,2]
[338313381,1726491040760,-6591.85840213,0.00019141,2]
[338313382,1726491040769,-25587.33028131,0.00019148,3]
[338313385,1726491041397,-55250.73690556,0.00019148,3]
[338313386,1726491041407,-91265.3406171,0.00019148,3]
[338313387,1726491041416,-235.01436437,0.00019148,2]
[338313388,1726491041426,-53592.5397925,0.00019157,3]
[338313389,1726491041435,-45632.6703085,0.00019157,3]
[338313390,1726491041445,-45632.6703085,0.00019158,3]
[338313391,1726491041454,-968.37764072,0.00019164,2]
[338313392,1726491041463,-500.0,0.00019173,2]
[338313393,1726491041473,-500.0,0.00019173,2]
[338313394,1726491041482,-500.0,0.00019173,2]
[338313395,1726491041492,-500.0,0.00019173,2]
[338313396,1726491041749,-175.98272928,0.00019173,2]
[338313397,1726491041766,-500.0,0.00019173,2]
[338313398,1726491041776,-510.05632153,0.00019173,2]
[338313399,1726491041785,-500.0,0.00019173,2]
[338313400,1726491041795,-160.0,0.00019173,2]
[338313401,1726491041807,-500.0,0.00019173,2]
[338313402,1726491041818,-500.0,0.00019173,2]
[338313403,1726491041828,-500.0,0.00019173,2]
[338313404,1726491041837,-500.0,0.00019173,2]
[338313405,1726491041847,-500.0,0.00019173,2]
[338313406,1726491041857,-500.0,0.00019173,2]
[338313407,1726491041867,-500.0,0.00019173,2]
[338313408,1726491041877,-500.0,0.00019173,2]
[338313409,1726491041886,-500.25810198,0.00019173,2]
[338313410,1726491041896,-500.0,0.00019173,2]
[338313411,1726491041905,-500.0,0.00019173,2]
[338313412,1726491041914,-500.0,0.00019173,2]
[338313413,1726491041923,-63978.06422297,0.00019178,5]
[338313414,1726491041933,-5748.28431012,0.00019178,5]
[338313415,1726491041943,-500.0,0.00019178,2]
[338313416,1726491041952,-500.0,0.00019178,2]
[338313417,1726491041962,-500.0,0.00019178,2]
[338313418,1726491041972,-500.0,0.00019178,2]
[338313419,1726491041981,-497.40713359,0.00019178,2]
[338313420,1726491041991,-500.0,0.00019178,2]
[338313421,1726491042000,-500.0,0.00019178,2]
[338313422,1726491042010,-500.0,0.00019178,2]
[338313423,1726491042020,-500.0,0.00019178,2]
[338313424,1726491042029,-500.0,0.00019178,2]
[338313425,1726491042038,-500.0,0.00019178,2]
[338313426,1726491042048,-500.0,0.00019178,2]
[338313427,1726491042057,-500.0,0.00019178,2]
[338313428,1726491042067,-500.0,0.00019178,2]
[338313429,1726491042076,-500.0,0.00019178,2]
[338313430,1726491042085,-500.0,0.00019178,2]
[338313431,1726491042094,-500.0,0.00019178,2]
[338313432,1726491042104,-500.0,0.00019178,2]
[338313433,1726491042113,-501.02223224,0.00019178,2]
[338313434,1726491042123,-500.0,0.00019178,2]
[338313435,1726491042134,-1594.27,0.00019178,2]
[338313436,1726491042143,-165.019815,0.00019178,2]
[338313437,1726491042153,-1006.12,0.00019178,2]
[338313438,1726491042163,-630.96870364,0.00019178,2]
[338313439,1726491042172,-500.0,0.00019178,2]
[338313440,1726491042181,-500.0,0.00019178,2]
[338313441,1726491042191,-151.0,0.00019178,2]
[338313442,1726491042200,-500.0,0.00019178,2]
[338313443,1726491042210,-500.0,0.00019178,2]
[338313444,1726491042220,-689.81,0.00019178,2]
[338313445,1726491042230,-500.0,0.00019178,2]
[338313446,1726491042239,-500.0,0.00019178,2]
[338313447,1726491042252,-500.0,0.00019178,2]
[338313448,1726491042261,-500.0,0.00019178,2]
[338313449,1726491042271,-500.0,0.00019178,2]
[338313450,1726491042280,-500.0,0.00019178,2]
[338313451,1726491042290,-500.0,0.00019178,2]
[338313452,1726491042302,-500.0,0.00019178,2]
[338313453,1726491042311,-501.62796113,0.00019178,2]
[338313454,1726491042320,-500.0,0.00019178,2]
[338313455,1726491042330,-1917.78,0.00019178,2]
[338313456,1726491042340,-500.0,0.00019178,2]
[338313457,1726491042350,-500.0,0.00019178,2]
[338313458,1726491042360,-152.952042,0.00019178,2]
[338313459,1726491042369,-500.0,0.00019178,2]
[338313460,1726491042379,-500.0,0.00019178,2]
[338313461,1726491042388,-1106.97,0.00019178,2]
[338313462,1726491042399,-500.0,0.00019178,2]
[338313463,1726491042410,-500.0,0.00019178,2]
[338313464,1726491042421,-500.0,0.00019178,2]
[338313465,1726491042432,-817.39,0.00019178,2]
[338313466,1726491042442,-500.0,0.00019178,2]
[338313467,1726491042452,-500.0,0.00019178,2]
[338313468,1726491042462,-500.0,0.00019178,2]
[338313469,1726491042471,-500.0,0.00019178,2]
[338313470,1726491042480,-500.0,0.00019178,2]
[338313471,1726491042490,-762.28,0.00019178,2]
[338313472,1726491042500,-500.0,0.00019178,2]
[338313473,1726491042510,-500.0,0.00019178,2]
[338313474,1726491042520,-830.21,0.00019178,2]
[338313475,1726491042530,-506.23810705,0.00019178,2]
[338313476,1726491042542,-584.57,0.00019178,2]
[338313477,1726491042553,-500.0,0.00019178,2]
[338313478,1726491042563,-872.86,0.00019178,2]
[338313479,1726491042572,-640.13,0.00019178,2]
[338313480,1726491042582,-735.86,0.00019178,2]
[338313481,1726491042591,-605.27,0.00019178,2]
[338313482,1726491042601,-500.97384337,0.00019178,2]
[338313483,1726491042610,-500.0,0.00019178,2]
[338313484,1726491042621,-2262.81,0.00019178,2]
[338313485,1726491042630,-500.0,0.00019178,2]
[338313486,1726491042640,-741.23,0.00019178,2]
[338313487,1726491042650,-151.0,0.00019178,2]
[338313488,1726491042659,-151.0,0.00019178,2]
[338313489,1726491042670,-500.0,0.00019178,2]
[338313490,1726491042679,-533.91,0.00019178,2]
[338313491,1726491042689,-614.92,0.00019178,2]
[338313492,1726491042699,-500.0,0.00019178,2]
[338313493,1726491042709,-151.0,0.00019178,2]
[338313494,1726491042718,-667.88,0.00019178,2]
[338313495,1726491042728,-500.0,0.00019178,2]
[338313496,1726491042737,-500.0,0.00019178,2]
[338313497,1726491042747,-588.93,0.00019178,2]
[338313498,1726491042757,-846.19,0.00019178,2]
[338313499,1726491042767,-500.0,0.00019178,2]
[338313500,1726491042776,-500.0,0.00019178,2]
[338313501,1726491042785,-718.77,0.00019178,2]
[338313502,1726491042795,-519.78,0.00019178,2]
[338313503,1726491042806,-500.0,0.00019178,2]
[338313504,1726491042815,-500.0,0.00019178,2]
[338313505,1726491042825,-500.0,0.00019178,2]
[338313506,1726491042834,-500.0,0.00019178,2]
[338313507,1726491042844,-500.0,0.00019178,2]
[338313508,1726491042855,-500.98930675,0.00019178,2]
[338313509,1726491042865,-500.0,0.00019178,2]
[338313510,1726491042873,-320.84549613,0.00019178,2]
[338313511,1726491042883,-1480.32,0.00019178,2]
[338313512,1726491042892,-500.0,0.00019178,2]
[338313513,1726491042901,-925.57,0.00019178,2]
[338313514,1726491042911,-500.0,0.00019178,2]
[338313515,1726491042920,-500.0,0.00019178,2]
[338313516,1726491042929,-500.0,0.00019178,2]
[338313517,1726491042938,-500.0,0.00019178,2]
[338313518,1726491042947,-500.0,0.00019178,2]